bitfinex-derivatives/quotes_ETHF0:USTF0_20260113
["timestamp","ask_amount","ask_price","bid_price","bid_amount"]
[1768316993976,3.32431395,3145.6,3144.0,1.283]
[1768316994178,3.32431395,3145.4,3144.0,1.283]
[1768316994782,3.32431395,3145.4,3143.9,0.00322373]
[1768316995077,3.32431395,3145.4,3144.0,1.283]
[1768316995477,3.32431395,3145.4,3143.9,0.00322373]
[1768316995886,3.32431395,3145.4,3143.9,1.28622373]
[1768316996480,3.32431395,3145.4,3143.9,0.00322373]
[1768317002781,6.475,3145.8,3144.0,0.15917]
[1768317002987,3.32431395,3145.6,3144.0,0.15917]
[1768317003183,3.32431395,3145.4,3144.0,0.15917]
[1768317003589,3.32431395,3145.4,3144.1,1.283]
[1768317003991,3.32431395,3145.4,3144.0,0.15917]
[1768317004190,3.32431395,3145.4,3143.9,1.28622373]
[1768317004392,3.32431395,3145.0,3143.9,0.00322373]
[1768317005192,3.62097296,3144.8,3143.9,0.00322373]
[1768317005383,3.62097296,3144.8,3142.9,7.49099475]
[1768317005686,0.15915,3144.5,3142.7,3.182]
[1768317005881,3.62097296,3144.2,3142.7,3.182]
[1768317006077,3.62097296,3144.0,3142.6,1.283]
[1768317006281,3.62097296,3144.0,3142.6,0.00335765]
[1768317006484,3.62097296,3143.8,3142.6,0.00335765]
[1768317006685,3.62097296,3143.6,3142.6,0.00335765]
[1768317006884,3.6232064,3143.6,3142.6,0.00335765]
[1768317007087,0.00223344,3143.6,3142.6,0.00335765]
[1768317008193,0.00223344,3143.6,3142.6,1.28635765]
[1768317010992,0.00223344,3143.6,3142.6,0.00335765]
[1768317011187,0.00223344,3143.6,3142.7,1.283]
[1768317011386,0.00223344,3143.6,3142.8,1.283]
[1768317011787,3.62097296,3144.6,3142.7,0.15924]
[1768317011993,3.62097296,3144.6,3142.8,4.466]
[1768317012494,5.20050664,3144.6,3142.7,0.15924]
[1768317012694,3.62097296,3144.4,3142.7,0.15924]
[1768317013082,3.62097296,3144.4,3142.6,1.28635765]
[1768317013292,3.78012296,3144.4,3142.6,0.00335765]
[1768317014100,3.62097296,3144.1,3142.6,0.00335765]
[1768317016098,1.57953368,3143.8,3142.6,0.00335765]
[1768317016289,3.65770675,3143.7,3142.6,0.00335765]
[1768317016497,5.23724043,3144.2,3142.6,0.00335765]
[1768317016690,3.65770675,3144.2,3142.6,0.00335765]
[1768317017695,0.00281574,3144.6,3143.0,3.74636185]
[1768317017897,0.00281574,3144.6,3143.1,1.283]
[1768317018104,0.00281574,3144.6,3143.7,1.57953368]
[1768317018399,0.1,3145.0,3143.9,0.15917]
[1768317018787,0.1,3145.0,3143.7,1.57953368]
[1768317018788,0.1,3145.0,3144.1,0.15917]
[1768317018992,0.09866063,3145.0,3144.1,1.44217]
[1768317019199,0.00272797,3145.0,3144.1,1.44217]
[1768317019392,0.00272797,3145.0,3144.2,3.183]
[1768317019592,0.00272797,3145.0,3144.3,1.283]
[1768317020404,0.00272797,3145.0,3144.1,0.15917]
[1768317020596,0.00272797,3145.0,3143.4,0.1592]
[1768317020800,0.00272797,3145.0,3143.6,0.15919]
[1768317021001,3.66043472,3145.0,3142.9,0.15923]
[1768317021197,3.65770675,3144.7,3143.0,1.284]
[1768317021503,0.00272797,3145.0,3143.3,1.73874368]
[1768317021799,3.66043472,3145.0,3143.4,1.284]
[1768317024501,3.66043472,3145.0,3143.3,0.15921]
[1768317024806,3.66043472,3145.0,3143.4,1.284]
[1768317025107,3.65770675,3144.8,3142.8,0.15923]
[1768317025306,3.65770675,3144.8,3142.9,4.62622]
[1768317027810,3.65770675,3144.8,3143.1,1.284]
[1768317029610,3.65770675,3144.8,3143.2,0.15921]
[1768317030117,3.65770675,3144.8,3143.3,1.284]
[1768317030406,0.00272797,3145.0,3143.3,1.284]
[1768317030906,0.00272797,3145.0,3143.4,0.1592]
[1768317031915,3.65770675,3144.8,3143.4,0.1592]
[1768317032207,3.65770675,3144.8,3143.4,1.4432]
[1768317033013,5.23724043,3144.5,3142.8,3.34223]
[1768317033314,3.65770675,3144.4,3142.9,1.44323]
[1768317033513,3.65770675,3144.4,3143.0,0.15922]
[1768317034406,1.57953368,3144.9,3143.0,0.15922]
[1768317034605,3.65770675,3144.8,3143.0,0.15922]
[1768317036712,3.54031266,3144.4,3143.0,0.15922]
[1768317036915,3.54031266,3144.4,3143.1,1.284]
[1768317037511,3.54031266,3144.0,3142.6,0.00335765]
[1768317037711,3.54031266,3144.0,3142.7,1.284]
[1768317037921,3.54031266,3144.0,3142.6,0.00335765]
[1768317038520,5.11984634,3143.7,3142.6,0.00335765]
[1768317039116,1.57953368,3143.3,3141.8,3.62948442]
[1768317039322,5.11984634,3143.3,3141.9,1.285]
[1768317039506,5.11984634,3143.3,3141.8,0.15928]
[1768317040206,3.54031266,3143.3,3141.8,0.16336221]
[1768317041918,1.57953368,3142.4,3141.6,1.04436051]
[1768317042306,5.11984634,3142.5,3141.6,0.80385185]
[1768317042514,3.54031266,3142.5,3141.6,0.80385185]
[1768317043020,3.54031266,3142.5,3141.6,0.8076815]
[1768317043021,3.54323579,3142.5,3141.6,0.8076815]
[1768317045219,3.54323579,3142.5,3141.1,1.285]
[1768317046024,3.54323579,3142.5,3140.9,0.15933]
[1768317046218,3.54323579,3142.5,3140.9,0.16292015]
[1768317046419,3.54323579,3142.5,3141.0,1.285]
[1768317047127,3.54323579,3142.5,3140.9,0.16292015]
[1768317047319,3.54323579,3142.5,3141.1,1.285]
[1768317047726,3.54323579,3142.5,3141.0,1.285]
[1768317048324,0.00292313,3142.5,3141.2,0.15931]
[1768317049226,0.00292313,3142.5,3141.4,3.5795166]
[1768317049717,0.00292313,3142.5,3141.7,0.15929]
[1768317050313,3.54323579,3142.5,3141.7,0.15929]
[1768317050515,3.54323579,3142.5,3140.9,0.00359015]
[1768317050516,5.11984634,3141.8,3140.9,0.00359015]
[1768317050714,1.57953368,3141.4,3139.9,1.285]
[1768317051421,1.57953368,3141.4,3139.6,3.5795166]
[1768317051422,5.11984634,3141.4,3140.0,1.285]
[1768317051721,1.57953368,3141.1,3140.0,0.00343074]
[1768317053627,1.57953368,3141.2,3140.0,0.00343074]
[1768317055721,3.54031266,3141.4,3140.0,0.00343074]
[1768317056025,3.54031266,3142.3,3140.0,0.16280074]
[1768317056325,3.54031266,3142.0,3140.0,0.16280074]
[1768317056526,5.11984634,3141.7,3140.0,0.16280074]
[1768317056823,3.54031266,3141.7,3140.0,0.16280074]
[1768317057027,3.54031266,3141.7,3140.1,0.15937]
[1768317057329,5.11984634,3141.1,3140.0,0.00343074]
[1768317057824,3.54031266,3141.0,3140.0,0.00343074]
[1768317058628,1.57953368,3140.7,3139.5,0.1594]
[1768317058922,1.57953368,3140.7,3139.0,4.8655166]
[1768317059225,3.54031266,3140.6,3139.0,1.286]
[1768317059422,3.54031266,3140.6,3139.1,0.15942]
[1768317059622,3.54031266,3140.6,3139.1,0.16241876]
[1768317060332,5.11984634,3140.4,3139.1,0.16241876]
[1768317060632,3.54031266,3140.3,3139.1,0.16241876]
[1768317060824,3.54380188,3140.3,3139.1,0.16241876]
[1768317061026,0.00348922,3140.3,3139.1,0.16241876]
[1768317062125,0.00348922,3140.3,3139.1,0.00299876]
[1768317062330,0.00348922,3140.3,3139.1,3.58251536]
[1768317062528,9.22e-06,3140.3,3139.7,0.15939]
[1768317062729,9.22e-06,3140.3,3139.3,3.5795166]
[1768317062932,3.54031266,3141.3,3139.3,3.5795166]
[1768317063424,1.57953368,3142.0,3139.5,3.5795166]
[1768317063629,3.54031266,3141.9,3139.5,3.5795166]
[1768317063830,1.57953368,3141.8,3139.5,3.5795166]
[1768317064034,1.58239539,3141.8,3139.5,3.5795166]
[1768317064636,1.58239539,3141.8,3140.1,0.15936]
[1768317064841,1.58239539,3141.8,3140.2,1.286]
[1768317065331,3.56363918,3141.8,3140.2,1.286]
[1768317066835,3.56363918,3141.8,3140.1,1.44536]
[1768317067732,3.56363918,3141.8,3140.1,1.286]
[1768317068528,3.56363918,3141.8,3140.3,0.15936]
[1768317070034,3.56363918,3141.8,3140.5,0.15935]
[1768317070332,3.56363918,3141.8,3140.6,0.15934]
[1768317070734,3.56363918,3141.8,3140.0,0.15937]
[1768317070944,3.56363918,3141.8,3140.1,1.286]
[1768317071340,3.56363918,3141.8,3140.2,0.15936]
[1768317072249,3.56363918,3141.8,3140.3,0.15936]
[1768317072452,3.56363918,3141.8,3140.4,0.15935]
[1768317072845,3.56363918,3141.8,3140.5,0.15935]
[1768317074744,3.56363918,3141.8,3139.9,0.15938]
[1768317075151,3.56077747,3141.6,3139.9,0.15938]
[1768317075356,3.72007747,3141.6,3139.3,3.46533394]
[1768317075653,3.56052127,3141.2,3139.3,1.44541]
[1768317078358,3.56052127,3141.0,3139.3,1.44541]
[1768317079659,3.56052127,3141.0,3139.3,0.15941]
[1768317082760,3.56052127,3141.0,3139.6,0.15939]
[1768317083057,3.56052127,3141.7,3139.6,0.15939]
[1768317083258,3.56052127,3141.5,3139.6,0.15939]
[1768317083458,3.56052127,3141.3,3139.6,0.15939]
[1768317083657,0.95732836,3141.2,3139.6,0.15939]
[1768317083855,4.51784963,3141.2,3139.6,0.15939]
[1768317084152,3.56052127,3141.2,3139.7,0.15938]
[1768317084352,3.56052127,3141.2,3139.8,0.15938]
[1768317084552,3.56052127,3141.7,3139.3,6.0]
[1768317084752,4.51802814,3141.6,3139.4,3.65939139]
[1768317084962,3.56052127,3141.6,3140.1,0.15936]
[1768317085550,3.56052127,3141.6,3140.2,0.15936]
[1768317086652,3.56052127,3141.6,3140.3,1.286]
[1768317088466,3.56052127,3141.6,3140.3,1.44536]
[1768317088660,0.00286171,3141.8,3140.7,0.15934]
[1768317089263,0.00286171,3141.8,3140.3,4.94539139]
[1768317089564,3.56052127,3142.6,3141.3,0.15931]
[1768317089763,3.56052127,3143.3,3141.4,1.286]
[1768317089967,3.56052127,3143.0,3141.4,1.286]
[1768317090354,3.56052127,3143.0,3141.4,1.4453]
[1768317090558,3.56342281,3143.0,3141.4,0.16157277]
[1768317090754,3.56628452,3143.0,3141.5,1.286]
[1768317091669,3.56628452,3143.0,3141.6,1.286]
[1768317092061,3.56628452,3143.0,3141.4,0.16157277]
[1768317094069,0.00286171,3142.7,3141.4,0.16157277]
[1768317094457,3.56338298,3142.7,3141.4,0.00227277]
[1768317095068,1.79452028,3142.4,3140.2,3.46215602]
[1768317095265,3.59807812,3142.3,3140.2,3.34536]
[1768317095457,3.75733812,3142.3,3140.2,0.15936]
[1768317095663,3.59807812,3141.8,3140.1,1.285]
[1768317095861,3.59807812,3141.8,3140.1,0.00305606]
[1768317096064,3.59807812,3141.8,3140.1,1.28805606]
[1768317096264,3.59807812,3141.8,3140.1,0.00305606]
[1768317100068,3.59807812,3141.8,3140.1,0.16242606]
[1768317100273,3.59807812,3141.8,3140.4,0.15935]
[1768317100670,3.59807812,3142.6,3140.6,0.15934]
[1768317100867,3.59807812,3142.6,3141.0,0.15932]
[1768317101167,3.59807812,3142.6,3141.2,0.15931]
[1768317101367,0.15921,3143.3,3141.3,0.1593]
[1768317101561,0.00286171,3142.9,3141.4,0.1593]
[1768317102872,3.59807812,3143.1,3141.4,0.1593]
[1768317103175,3.60384137,3143.0,3141.5,1.285]
[1768317104873,3.60384137,3143.0,3141.4,0.1593]
[1768317105175,3.60384137,3143.0,3141.4,1.4443]
[1768317105872,3.60097966,3143.0,3141.5,0.15929]
[1768317106076,3.60384137,3143.0,3141.5,0.15929]
[1768317107371,3.60384137,3143.0,3141.6,0.15929]
[1768317107576,3.60384137,3143.0,3141.9,0.15928]
[1768317107577,0.00290154,3143.0,3141.9,0.15928]
[1768317108174,0.00290154,3143.0,3142.1,0.15927]
[1768317110067,0.00290154,3143.0,3142.2,0.15926]
[1768317110274,0.00290154,3143.0,3142.3,1.286]
[1768317110480,0.00290154,3143.0,3142.3,1.28966826]
[1768317111082,3.59807812,3144.0,3142.3,1.28966826]
[1768317111284,0.00286171,3143.6,3142.3,1.28966826]
[1768317112081,3.60494266,3143.6,3142.3,0.00366826]
[1768317114080,0.00286171,3143.1,3142.3,0.00366826]
[1768317118088,0.00286171,3143.1,3142.3,1.28866826]
[1768317123292,3.60093983,3143.1,3142.3,0.00366826]
[1768317123599,3.59807812,3143.0,3141.5,1.44429]
[1768317124402,3.59807812,3143.0,3141.5,1.44711317]
[1768317125896,3.50440855,3142.3,3141.5,0.00282317]
[1768317126391,3.50440855,3142.3,3140.7,0.15933]
[1768317126799,3.50440855,3142.3,3140.8,1.285]
[1768317127495,0.00286171,3142.3,3140.9,0.15933]
[1768317127701,3.50440855,3142.8,3140.9,3.82186576]
[1768317127897,0.00286171,3142.3,3141.0,4.469]
[1768317128090,0.00286171,3142.3,3141.0,4.62832]
[1768317128506,3.50440855,3143.5,3141.6,5.24460904]
[1768317128803,0.00286171,3143.3,3141.6,5.40389904]
[1768317129098,0.00286171,3143.3,3141.8,0.15928]
[1768317129306,0.00286171,3143.3,3141.9,1.44428]
[1768317129507,0.00286171,3143.3,3141.9,4.94753576]
[1768317130395,0.00286171,3143.3,3142.2,0.15926]
[1768317131406,0.00286171,3143.0,3142.2,0.15926]
[1768317133406,0.00286171,3143.0,3142.3,1.285]
[1768317133801,3.50727026,3143.0,3141.6,3.184]
[1768317134008,3.50440855,3142.9,3141.7,1.285]
[1768317135100,3.50440855,3142.9,3141.5,0.15929]
[1768317135419,3.50440855,3142.9,3141.6,1.286]
[1768317139801,3.50440855,3142.9,3141.6,1.44529]
[1768317141215,3.66641232,3142.2,3141.0,0.15932]
[1768317141713,3.66641232,3142.2,3141.1,1.285]
[1768317142114,5.2484856,3142.7,3141.1,1.44432]
[1768317142305,3.66641232,3142.7,3141.1,1.44432]
[1768317144012,0.00286171,3142.0,3141.1,1.44432]
[1768317145518,0.00286171,3142.0,3141.1,0.15932]
[1768317145718,0.00286171,3142.0,3141.2,1.286]
[1768317146017,3.66641232,3142.7,3141.2,1.286]
[1768317146219,0.00286171,3142.3,3141.2,1.286]
[1768317147011,0.00286171,3142.3,3141.2,4.91681184]
[1768317147209,3.66641232,3143.2,3141.7,0.15929]
[1768317147415,0.00286171,3142.8,3141.7,0.15929]
[1768317148115,3.66927403,3142.8,3141.1,0.15932]
[1768317148416,3.66641232,3142.5,3141.2,1.287]
[1768317148918,3.66641232,3142.5,3141.1,0.15932]
[1768317149122,3.66641232,3142.5,3141.3,1.287]
[1768317152922,0.00286171,3142.8,3141.3,1.44631]
[1768317153124,0.00286171,3142.8,3141.5,0.1593]
[1768317154428,0.00286171,3142.8,3141.6,1.287]
[1768317154728,3.36479928,3142.8,3141.7,1.287]
[1768317155124,0.00286171,3142.8,3141.7,1.287]
[1768317155318,0.00286171,3142.8,3141.7,4.83976289]
[1768317155518,0.00286171,3142.8,3141.9,0.15928]
[1768317156120,0.00286171,3142.8,3142.0,1.287]
[1768317156316,0.00286171,3142.8,3141.4,0.1593]
[1768317156520,0.00286171,3142.8,3141.5,4.472]
[1768317157427,4.94687256,3142.8,3141.4,0.1593]
[1768317157617,3.36193757,3142.3,3141.1,3.185]
[1768317157824,3.36193757,3142.3,3141.1,4.472]
[1768317158022,3.36193757,3142.3,3140.9,0.15933]
[1768317158224,3.36193757,3142.3,3141.1,1.287]
[1768317158527,3.36193757,3142.3,3141.0,1.287]
[1768317161321,0.15924,3142.7,3141.0,1.287]
[1768317161518,4.31916882,3142.6,3141.0,1.287]
[1768317161729,3.36193757,3142.6,3141.0,1.287]
[1768317162433,4.31946383,3142.5,3141.0,1.287]
[1768317162733,3.36193757,3142.5,3141.0,1.287]
[1768317162933,3.36193757,3143.0,3141.0,4.83976289]
[1768317163125,0.95764077,3142.9,3141.3,0.15931]
[1768317163430,0.95813423,3142.8,3141.4,0.1593]
[1768317163633,3.36193757,3143.0,3141.4,0.1593]
[1768317165328,1.58207328,3143.4,3141.4,3.55276289]
[1768317165538,3.36193757,3143.5,3141.6,3.71205289]
[1768317165736,3.36193757,3143.5,3141.7,3.185]
[1768317166035,3.52110757,3144.0,3141.9,3.55276289]
[1768317167629,3.52110757,3144.0,3142.0,0.15927]
[1768317168028,3.52110757,3144.0,3142.0,3.71203289]
[1768317168224,3.36193757,3144.0,3142.0,3.71203289]
[1768317168429,3.36193757,3144.0,3142.1,3.55276289]
[1768317168636,3.36193757,3144.0,3142.3,3.71202289]
[1768317169226,3.36193757,3144.5,3142.7,0.15924]
[1768317169528,3.36193757,3144.5,3142.8,1.289]
[1768317170335,3.36441918,3144.5,3142.8,1.289]
[1768317170545,3.36441918,3144.5,3142.9,1.289]
[1768317172440,0.00248161,3144.5,3143.1,0.15921]
[1768317172640,0.00248161,3144.5,3143.1,0.00280388]
[1768317173038,0.00248161,3144.5,3143.1,3.55556677]
[1768317173242,0.00248161,3144.5,3143.1,3.81322053]
[1768317173439,0.00248161,3144.5,3143.4,3.71196289]
[1768317173644,3.36193757,3145.5,3143.8,3.55276289]
[1768317173842,3.36193757,3145.5,3143.9,1.289]
[1768317174441,3.36193757,3146.0,3143.9,5.00094289]
[1768317174746,3.36475957,3146.0,3144.0,3.184]
[1768317175245,1.58207328,3146.7,3144.4,3.55276289]
[1768317176251,1.58207328,3146.5,3144.4,3.55276289]
[1768317176545,1.58207328,3146.1,3144.5,1.288]
[1768317176745,1.58207328,3145.7,3144.1,3.184]
[1768317176941,1.58207328,3145.7,3144.2,1.288]
[1768317177542,1.58207328,3145.7,3144.3,1.288]
[1768317178948,1.58207328,3145.9,3144.3,1.288]
[1768317179153,1.74112328,3146.3,3144.4,3.55276289]
[1768317179349,0.00231541,3146.7,3144.4,3.55276289]
[1768317179554,0.00231541,3146.7,3144.9,3.55276289]
[1768317179751,0.00231541,3146.7,3144.6,1.58207328]
[1768317179752,0.00231541,3146.7,3145.2,3.55276289]
[1768317180053,0.00231541,3146.7,3145.3,4.84076289]
[1768317180356,0.00231541,3146.7,3145.4,3.55276289]
[1768317180563,0.00231541,3146.7,3145.4,0.00316278]
[1768317181463,4.94401085,3146.4,3145.4,0.00316278]
[1768317181669,1.58207328,3146.4,3145.4,0.00316278]
[1768317181960,0.00231541,3146.7,3145.4,0.00316278]
[1768317184362,0.00231541,3146.7,3145.4,3.55592567]
[1768317184557,0.00231541,3146.7,3145.4,0.00316278]
[1768317184756,0.00231541,3146.7,3145.4,1.29116278]
[1768317185155,0.00231541,3146.7,3145.4,0.00316278]
[1768317186272,0.00231541,3146.7,3145.4,3.44016727]
[1768317188974,0.00231541,3146.7,3145.4,1.29016278]
[1768317189271,0.16135541,3146.7,3145.4,0.00316278]
[1768317189565,0.00231541,3146.7,3145.4,3.44016727]
[1768317193362,0.00231541,3146.7,3145.6,3.43700449]
[1768317196072,0.00231541,3146.7,3145.7,1.287]
[1768317196279,0.00231541,3146.7,3145.7,4.77856217]
[1768317196475,0.00231541,3146.7,3145.8,3.49156217]
[1768317198482,0.15897,3148.0,3145.8,9.49156217]
[1768317198678,0.15897,3148.0,3145.9,3.49156217]
[1768317199382,0.16165084,3148.0,3145.9,3.49156217]
[1768317199676,0.16165084,3148.0,3145.6,3.49156217]
[1768317199677,3.34005383,3147.7,3145.6,3.49156217]
[1768317199878,3.34005383,3147.7,3145.8,3.49156217]
[1768317200884,3.34005383,3147.7,3145.9,1.287]
[1768317201181,3.34005383,3147.7,3145.8,3.49156217]
[1768317201385,3.49905383,3147.5,3145.4,0.00316278]
[1768317201586,3.34005383,3147.3,3145.5,1.287]
[1768317201886,0.159,3147.5,3145.6,3.49156217]
[1768317202088,0.95467701,3147.4,3145.6,3.65065217]
[1768317202278,0.95581983,3147.3,3145.6,3.65065217]
[1768317202477,3.34005383,3147.9,3145.6,3.65065217]
[1768317202684,0.95581759,3147.8,3145.6,3.65065217]
[1768317202880,0.95581759,3147.7,3145.6,3.65065217]
[1768317203188,0.95581759,3147.6,3145.9,3.49156217]
[1768317203386,0.95581759,3147.5,3145.9,3.49156217]
[1768317203578,3.34005383,3147.9,3145.9,3.49156217]
[1768317203780,0.95685069,3147.8,3145.9,3.49156217]
[1768317204082,0.95685069,3147.7,3145.9,3.49156217]
[1768317204283,0.95685069,3147.6,3145.9,3.49156217]
[1768317204485,0.95685069,3147.5,3145.9,3.49156217]
[1768317204685,3.34005383,3147.9,3145.9,3.49156217]
[1768317204889,0.95730511,3147.8,3145.9,3.49156217]
[1768317205079,0.95730511,3147.7,3145.9,3.49156217]
[1768317205279,4.29735894,3147.6,3146.0,1.287]
[1768317205480,0.95730511,3147.5,3146.0,1.287]
[1768317205681,0.95730511,3147.4,3146.0,1.287]
[1768317205981,3.34005383,3147.6,3146.0,1.287]
[1768317206287,0.95701927,3147.5,3146.0,1.287]
[1768317206487,0.95701927,3147.4,3146.0,1.287]
[1768317206685,3.34005383,3147.6,3146.0,1.287]
[1768317206885,0.95714403,3147.5,3146.0,1.287]
[1768317207092,0.95714403,3147.4,3146.0,4.77856217]
[1768317207286,0.15898,3147.7,3146.0,4.77856217]
[1768317207591,0.95739239,3147.6,3146.0,4.77856217]
[1768317207890,0.95739239,3147.5,3146.0,3.49156217]
[1768317208087,0.95739239,3147.4,3146.0,3.49156217]
[1768317208287,0.95739239,3147.3,3146.0,3.49156217]
[1768317208486,3.49903383,3147.7,3146.0,3.49156217]
[1768317208685,0.95689131,3147.6,3146.0,3.49156217]
[1768317208887,0.95689131,3147.5,3146.0,3.49156217]
[1768317209090,0.95689131,3147.4,3146.0,3.49156217]
[1768317209287,0.95689131,3147.3,3146.0,3.49156217]
[1768317209491,3.49903383,3147.7,3146.0,3.49156217]
[1768317209697,0.95687602,3147.6,3146.0,3.49156217]
[1768317209889,0.95687602,3147.5,3146.0,3.49156217]
[1768317210195,0.95687602,3147.4,3146.0,3.49156217]
[1768317210493,0.95687602,3147.3,3146.0,3.49156217]
[1768317210695,3.49903383,3147.7,3146.0,3.49156217]
[1768317210901,0.95679662,3147.6,3146.0,3.49156217]
[1768317211097,0.95679662,3147.5,3146.0,3.49156217]
[1768317211392,0.00268084,3148.0,3146.0,3.49156217]
[1768317211589,0.95691939,3147.9,3146.0,3.49156217]
[1768317211792,0.95691939,3147.8,3146.4,3.49156217]
[1768317211989,0.95691939,3147.7,3146.4,3.49156217]
[1768317212297,0.00268084,3148.0,3146.4,3.49156217]
[1768317212597,0.95699213,3147.9,3146.4,3.49156217]
[1768317212800,0.00268084,3148.0,3146.4,3.49156217]
[1768317212801,0.95699213,3147.8,3146.4,3.49156217]
[1768317213099,0.95699213,3147.7,3146.4,3.49156217]
[1768317213292,0.00268084,3148.0,3146.4,3.49156217]
[1768317213493,0.95711889,3147.9,3146.4,3.49156217]
[1768317213693,0.95711889,3147.8,3146.4,3.49156217]
[1768317213893,0.95711889,3147.7,3146.4,3.49156217]
[1768317214097,0.00268084,3148.0,3146.4,3.49156217]
[1768317214402,0.95721041,3147.9,3146.4,3.49156217]
[1768317214597,0.95721041,3147.8,3146.4,3.49156217]
[1768317214797,0.95721041,3147.7,3146.4,3.49156217]
[1768317214997,0.00268084,3148.0,3146.4,3.49156217]
[1768317215296,0.95720054,3147.9,3146.4,3.49156217]
[1768317215596,0.95720054,3147.8,3146.4,3.49156217]
[1768317215796,0.95720054,3147.7,3146.4,3.49156217]
[1768317215999,0.00268084,3148.0,3146.4,3.49156217]
[1768317216190,0.95687041,3147.9,3146.4,3.49156217]
[1768317216393,0.95687041,3147.8,3146.4,3.49156217]
[1768317216593,0.95687041,3147.7,3146.4,3.49156217]
[1768317216887,0.00268084,3148.0,3146.4,3.49156217]
[1768317217085,0.95687829,3147.9,3146.4,3.49156217]
[1768317217293,0.95687829,3147.8,3146.5,1.286]
[1768317217494,0.95687829,3147.7,3146.5,1.286]
[1768317217699,0.00268084,3148.0,3146.5,1.286]
[1768317217992,0.95680834,3147.9,3146.5,1.286]
[1768317218200,0.95680834,3147.8,3146.5,1.286]
[1768317218397,0.95680834,3147.7,3146.5,1.286]
[1768317218597,0.16165084,3148.0,3146.3,0.15905]
[1768317218598,0.9569202,3147.6,3146.3,0.15905]
[1768317218794,0.15898,3147.9,3146.0,3.37731314]
[1768317218995,4.75077195,3147.8,3146.0,3.37731314]
[1768317219201,0.159,3147.5,3146.0,3.37731314]
[1768317219493,0.95697907,3147.4,3146.0,4.66331314]
[1768317220100,0.159,3147.3,3145.4,0.00316278]
[1768317220291,0.95697907,3147.2,3145.4,3.38047592]
[1768317220803,0.95697907,3147.2,3145.4,3.53957592]
[1768317221302,0.95745455,3147.1,3145.4,3.53957592]
[1768317221601,0.95745455,3147.0,3145.4,3.53957592]
[1768317221799,3.63481288,3147.2,3145.4,3.38047592]
[1768317221994,0.15902,3147.0,3145.4,3.38047592]
[1768317222306,0.95755829,3146.9,3145.4,3.38047592]
[1768317222496,0.95755829,3146.8,3145.4,3.38047592]
[1768317222800,0.95755829,3146.7,3145.4,3.38047592]
[1768317223104,0.15902,3147.0,3145.4,3.38047592]
[1768317223298,0.95683347,3146.9,3145.4,3.38047592]
[1768317223500,0.95683347,3146.8,3145.4,3.38047592]
[1768317223698,0.95683347,3146.7,3145.4,3.38047592]
[1768317223997,0.15902,3147.0,3145.4,3.38047592]
[1768317224200,0.15903,3146.8,3145.4,0.00316278]
[1768317224502,1.11609039,3146.7,3145.4,0.00316278]
[1768317224802,0.95705039,3146.6,3145.4,0.00316278]
[1768317225001,0.15904,3146.6,3145.4,0.00316278]
[1768317225191,0.9566487,3146.5,3145.4,0.00316278]
[1768317225392,0.9566487,3146.4,3145.4,0.00316278]
[1768317225599,0.9566487,3146.3,3145.4,0.00316278]
[1768317225798,0.15905,3146.5,3145.4,0.00316278]
[1768317225996,0.95610089,3146.4,3145.4,0.00316278]
[1768317226201,1.78868755,3146.9,3145.4,0.00316278]
[1768317226388,0.95580525,3146.8,3145.4,0.00316278]
[1768317226589,0.95580525,3146.7,3145.4,0.00316278]
[1768317226795,1.78868755,3146.9,3145.4,0.00316278]
[1768317226996,0.95578551,3146.8,3145.4,0.00316278]
[1768317227196,0.95578551,3146.7,3145.4,0.00316278]
[1768317227402,1.78868755,3146.9,3145.4,0.00316278]
[1768317227597,0.9564773,3146.8,3145.4,0.00316278]
[1768317227898,0.9564773,3146.7,3145.4,0.00316278]
[1768317228197,0.15902,3147.0,3145.4,3.38047592]
[1768317229404,42.077,3147.7,3145.4,3.38047592]
[1768317229405,0.15899,3147.7,3145.7,3.53639314]
[1768317229604,3.79376288,3148.4,3145.9,3.37731314]
[1768317229904,0.15895,3148.4,3146.4,3.37731314]
[1768317230507,0.15895,3148.4,3146.5,4.66331314]
[1768317230706,3.63481288,3148.5,3146.5,3.37731314]
[1768317230898,1.79136839,3148.0,3146.5,1.286]
[1768317231495,0.00268084,3148.0,3146.5,1.286]
[1768317234207,0.00268084,3148.0,3146.4,4.66331314]
[1768317234402,0.00268084,3148.0,3146.4,3.37731314]
[1768317234607,3.63749372,3148.0,3146.3,1.286]
[1768317235008,3.63749372,3148.0,3146.3,4.66331314]
[1768317235212,3.63749372,3148.0,3146.3,3.37731314]
[1768317236316,0.00268084,3148.0,3146.3,3.37731314]
[1768317239818,3.63749372,3148.0,3146.3,3.37731314]
[1768317240416,0.00268084,3148.0,3146.3,3.37731314]
[1768317242020,0.00268084,3148.0,3146.4,1.286]
[1768317242214,0.00268084,3148.0,3146.4,4.66331314]
[1768317242409,0.00268084,3148.0,3146.5,3.37731314]
[1768317244126,0.00268084,3148.0,3146.6,0.15904]
[1768317244420,0.00268084,3148.0,3146.7,3.37731314]
[1768317245821,0.00268084,3148.0,3146.8,1.286]
[1768317246014,0.00268084,3148.0,3146.8,4.79592288]
[1768317246322,0.00268084,3148.0,3146.8,3.50992288]
[1768317249326,1.57699119,3147.8,3146.3,3.50992288]
[1768317249725,1.57699119,3147.8,3146.4,1.286]
[1768317250628,1.57699119,3147.8,3146.4,4.79592288]
[1768317250924,1.57699119,3147.8,3146.5,3.50992288]
[1768317251127,0.00268084,3148.0,3146.5,3.50992288]
[1768317252225,0.00268084,3148.0,3146.5,3.66896288]
[1768317252725,0.00268084,3148.0,3146.6,4.79592288]
[1768317252927,0.00268084,3148.0,3146.6,3.50992288]
[1768317253229,0.00268084,3148.0,3146.6,4.79592288]
[1768317253430,1.57699119,3147.8,3146.0,3.50992288]
[1768317253730,1.57699119,3147.8,3146.2,3.50992288]
[1768317254131,1.57699119,3147.8,3146.2,4.79592288]
[1768317254532,1.57699119,3147.8,3146.3,3.45447007]
[1768317255431,1.73864203,3148.0,3146.3,3.45447007]
[1768317256132,0.16165084,3148.0,3146.3,3.45447007]
[1768317256331,1.73864203,3148.0,3146.3,3.45447007]
[1768317256829,1.73864203,3148.0,3146.4,1.286]
[1768317257435,0.00268084,3148.0,3147.1,3.45447007]
[1768317257625,0.00268084,3148.0,3147.2,1.286]
[1768317257826,0.00268084,3148.0,3147.2,4.74047007]
[1768317259035,0.00268084,3148.0,3147.3,3.45447007]
[1768317261144,0.15893,3148.8,3147.3,3.45447007]
[1768317262037,0.16176245,3148.8,3147.3,3.45447007]
[1768317263247,0.00283245,3148.8,3147.3,3.45447007]
[1768317264545,0.00283245,3148.8,3147.3,3.61347007]